bitfinex-derivatives/quotes_SOLF0:USTF0_20250505
["timestamp","ask_amount","ask_price","bid_price","bid_amount"]
[1746455189359,26.1,144.5,144.45,1.0]
[1746455189563,26.1,144.53,144.45,1.0]
[1746455189763,26.1,144.53,144.46,6.3736]
[1746455189959,50.50168292,144.56,144.47,18.72053837]
[1746455190159,50.50168292,144.56,144.48,26.1]
[1746455190964,50.50168292,144.56,144.49,6.9208]
[1746455191467,6.9195,144.53,144.49,6.9208]
[1746455192265,26.1,144.56,144.48,26.1]
[1746455192459,26.1,144.56,144.46,6.3736]
[1746455192859,26.1,144.56,144.48,6.9217]
[1746455193373,6.9208,144.5,144.48,6.9217]
[1746455193663,6.9208,144.5,144.47,6.922]
[1746455193863,6.9208,144.5,144.46,6.3736]
[1746455194064,6.9208,144.5,144.48,6.9216]
[1746455194661,6.9208,144.5,144.47,6.9219]
[1746455194963,6.9208,144.5,144.46,6.3736]
[1746455195161,6.9204,144.51,144.46,6.3736]
[1746455195361,26.1,144.52,144.46,6.3736]
[1746455195555,6.921,144.5,144.46,2.0928]
[1746455195756,6.921,144.5,144.48,6.9215]
[1746455196568,6.921,144.5,144.47,6.9219]
[1746455197869,6.921,144.5,144.48,6.9216]
[1746455198570,6.921,144.5,144.47,6.9219]
[1746455198865,6.921,144.5,144.45,27.1]
[1746455199269,6.921,144.5,144.48,6.9216]
[1746455199464,6.9205,144.51,144.48,6.9216]
[1746455200163,33.0198,144.52,144.45,27.1]
[1746455200369,24.40168292,144.58,144.45,27.1]
[1746455200565,26.06,144.56,144.45,27.1]
[1746455200870,26.06,144.56,144.53,6.9192]
[1746455200871,32.9781,144.56,144.53,6.9192]
[1746455201068,26.06,144.56,144.5,26.06]
[1746455201261,24.40168292,144.58,144.51,6.1798]
[1746455201969,24.40168292,144.58,144.55,6.9179]
[1746455202366,24.40168292,144.58,144.51,6.1798]
[1746455202567,31.31878292,144.58,144.54,6.9186]
[1746455202868,24.40168292,144.58,144.51,6.1798]
[1746455203071,31.31858292,144.58,144.55,6.9183]
[1746455203272,31.31858292,144.58,144.51,6.1798]
[1746455204071,26.06,144.59,144.51,6.1798]
[1746455204264,26.06,144.62,144.53,18.72053837]
[1746455204467,6.9167,144.59,144.55,6.9179]
[1746455204865,26.06,144.62,144.54,26.06]
[1746455205061,6.9171,144.58,144.54,26.06]
[1746455205672,6.9171,144.58,144.55,6.9181]
[1746455205870,6.9166,144.59,144.55,6.9181]
[1746455206070,6.9166,144.59,144.54,26.06]
[1746455206375,6.9161,144.6,144.54,26.06]
[1746455206572,26.06,144.62,144.54,26.06]
[1746455206973,6.9159,144.61,144.57,6.9169]
[1746455207171,6.9159,144.61,144.54,26.06]
[1746455207373,26.06,144.62,144.54,26.06]
[1746455207572,6.916,144.6,144.57,6.9171]
[1746455207768,26.06,144.62,144.54,26.06]
[1746455208477,6.9156,144.61,144.58,6.9166]
[1746455208869,26.06,144.62,144.54,26.06]
[1746455210074,6.9155,144.61,144.58,6.9168]
[1746455210276,26.06,144.62,144.54,26.06]
[1746455211279,6.9163,144.6,144.57,6.9173]
[1746455211471,26.06,144.62,144.54,26.06]
[1746455211868,26.06,144.65,144.54,26.06]
[1746455212366,6.9147,144.63,144.6,6.9156]
[1746455212678,552.2511,144.67,144.54,26.06]
[1746455212679,26.06,144.66,144.54,26.06]
[1746455213577,6.9138,144.65,144.54,26.06]
[1746455214078,26.06,144.66,144.54,26.06]
[1746455214278,6.9142,144.64,144.6,6.9155]
[1746455214480,26.06,144.66,144.6,6.9155]
[1746455214679,26.06,144.66,144.59,6.9162]
[1746455215378,26.06,144.66,144.55,26.06]
[1746455215879,13.8273,144.65,144.51,6.1798]
[1746455216072,18.72053837,144.62,144.52,26.04]
[1746455216270,6.9179,144.56,144.54,6.9188]
[1746455216471,26.04,144.61,144.52,26.04]
[1746455216880,26.04,144.61,144.55,6.9182]
[1746455217677,6.9171,144.58,144.55,6.9182]
[1746455218075,26.04,144.61,144.52,26.04]
[1746455218379,26.04,144.64,144.52,26.04]
[1746455218783,26.04,144.64,144.6,6.9158]
[1746455219281,6.9148,144.63,144.6,6.9158]
[1746455219684,6.9148,144.63,144.61,6.9154]
[1746455219877,6.9148,144.63,144.56,26.04]
[1746455220081,6.9151,144.62,144.56,26.04]
[1746455220979,6.9147,144.63,144.56,26.04]
[1746455221283,6.9147,144.63,144.6,6.9157]
[1746455221786,26.04,144.64,144.6,6.9157]
[1746455222083,26.04,144.64,144.51,24.90033837]
[1746455222273,6.9164,144.59,144.52,26.04]
[1746455222479,26.04,144.6,144.55,6.9182]
[1746455222783,26.04,144.6,144.52,26.04]
[1746455222983,18.72053837,144.59,144.51,6.92]
[1746455223184,22.88283837,144.59,144.51,6.92]
[1746455223487,6.9193,144.54,144.51,6.92]
[1746455223680,26.04,144.56,144.51,6.92]
[1746455223880,6.9191,144.54,144.51,6.92]
[1746455224386,26.04,144.56,144.51,6.92]
[1746455224885,26.04,144.56,144.49,26.04]
[1746455225087,44.76053837,144.56,144.47,2.0793]
[1746455225385,44.76053837,144.56,144.47,6.9218]
[1746455225386,6.921,144.5,144.47,6.9218]
[1746455225882,26.06,144.52,144.45,1.0]
[1746455226685,6.9225,144.47,144.45,1.0]
[1746455226987,30.2391,144.52,144.45,1.0]
[1746455227590,6.9208,144.5,144.45,1.0]
[1746455228188,6.9208,144.5,144.47,6.9219]
[1746455228487,26.06,144.52,144.45,1.0]
[1746455228788,32.9798,144.52,144.45,1.0]
[1746455228989,26.06,144.52,144.45,1.0]
[1746455229392,575.8421,144.55,144.45,1.0]
[1746455229889,6.9197,144.53,144.48,6.9213]
[1746455230091,575.8421,144.55,144.45,1.0]
[1746455230478,6.9198,144.52,144.48,6.9215]
[1746455230990,6.9202,144.51,144.48,6.9215]
[1746455231192,6.9202,144.51,144.45,1.0]
[1746455231193,26.02,144.51,144.45,1.0]
[1746455231686,26.02,144.51,144.48,6.9212]
[1746455231888,26.02,144.51,144.45,1.0]
[1746455232089,32.939,144.54,144.45,1.0]
[1746455232489,26.02,144.54,144.45,1.0]
[1746455232691,26.02,144.57,144.52,6.9194]
[1746455232884,26.02,144.57,144.47,18.72053837]
[1746455233083,6.9194,144.53,144.48,6.2406]
[1746455233286,26.02,144.57,144.48,6.2406]
[1746455233491,26.02,144.57,144.48,4.2809]
[1746455233886,6.9201,144.52,144.48,4.2809]
[1746455234086,26.02,144.57,144.48,2.1318]
[1746455234287,1.978,144.56,144.48,2.1318]
[1746455235088,6.9206,144.51,144.48,2.1318]
[1746455235494,4.1028,144.56,144.45,1.0]
[1746455235792,2.1261,144.55,144.45,27.02]
[1746455236195,6.9226,144.46,144.45,1.0]
[1746455237595,2.0399,144.5,144.45,2.0]
[1746455238095,6.9223,144.47,144.45,2.0]
[1746455238594,2.0399,144.5,144.45,2.0]
[1746455238796,6.9226,144.46,144.45,2.0]
[1746455245199,44.74053837,144.47,144.39,26.02]
[1746455245496,44.74053837,144.47,144.36,26.02]
[1746455245698,6.9244,144.43,144.39,6.9255]
[1746455245901,26.02,144.47,144.36,26.02]
[1746455246200,6.9239,144.44,144.41,6.9248]
[1746455246895,6.9239,144.44,144.42,6.9245]
[1746455247100,6.9239,144.44,144.36,26.02]
[1746455247399,6.9233,144.45,144.36,26.02]
[1746455247799,26.02,144.47,144.36,26.02]
[1746455248002,6.9228,144.46,144.36,26.02]
[1746455248400,6.9228,144.46,144.43,6.9238]
[1746455249202,32.9424,144.47,144.44,6.9235]
[1746455249499,26.02,144.47,144.4,26.04]
[1746455249803,6.9229,144.46,144.43,6.9238]
[1746455250705,6.9231,144.45,144.43,6.9238]
[1746455250903,26.02,144.47,144.44,6.9235]
[1746455251101,26.02,144.47,144.4,26.04]
[1746455251301,6.922,144.48,144.4,26.04]
[1746455251504,26.04,144.5,144.4,26.04]
[1746455251807,6.9213,144.49,144.41,6.1862]
[1746455252102,26.04,144.5,144.41,6.1862]
[1746455252402,6.9224,144.47,144.44,6.9232]
[1746455252706,26.04,144.5,144.41,6.1862]
[1746455252905,6.9219,144.48,144.41,6.1862]
[1746455253206,26.04,144.5,144.41,6.1862]
[1746455253507,6.9206,144.51,144.41,6.1862]
[1746455254302,574.26,144.53,144.41,20.0356]
[1746455254505,26.04,144.53,144.41,20.0356]
[1746455255004,6.9204,144.51,144.48,6.9213]
[1746455255805,6.9208,144.5,144.47,6.9219]
[1746455256000,26.04,144.53,144.46,26.04]
[1746455256307,6.9204,144.51,144.46,26.04]
[1746455256707,6.9204,144.51,144.48,6.9214]
[1746455257804,26.04,144.53,144.48,6.9214]
[1746455258009,26.04,144.53,144.46,26.04]
[1746455259108,6.922,144.48,144.46,26.04]
[1746455260103,6.9214,144.49,144.47,6.9218]
[1746455260308,26.04,144.53,144.47,6.9218]
[1746455260510,26.04,144.53,144.46,26.04]
[1746455260801,26.04,144.53,144.46,32.9624]
[1746455261007,26.04,144.53,144.46,26.04]
[1746455261208,26.04,144.53,144.47,6.9219]
[1746455261909,6.9209,144.5,144.47,6.9219]
[1746455263811,6.9204,144.51,144.49,6.9212]
[1746455264112,26.04,144.53,144.46,26.04]
[1746455264409,6.9195,144.53,144.46,26.04]
[1746455264710,6.9195,144.53,144.47,6.2917]
[1746455264904,6.9201,144.52,144.5,6.9205]
[1746455265105,6.9201,144.52,144.47,6.2917]
[1746455265510,6.9201,144.52,144.5,6.9207]
[1746455265812,6.9194,144.53,144.47,6.2917]
[1746455266209,6.9194,144.53,144.5,6.9205]
[1746455266506,6.9198,144.52,144.5,6.9205]
[1746455267111,6.9195,144.53,144.5,6.9205]
[1746455268614,6.9198,144.52,144.5,6.9205]
[1746455269425,6.9203,144.51,144.49,6.921]
[1746455270516,30.1924,144.56,144.46,26.04]
[1746455270707,48.91293837,144.56,144.46,26.04]
[1746455271015,62.74913837,144.56,144.46,26.04]
[1746455271619,13.8367,144.55,144.46,26.04]
[1746455271918,13.8367,144.55,144.43,26.0]
[1746455272421,6.922,144.48,144.46,6.9226]
[1746455272620,26.0,144.51,144.43,26.0]
[1746455273118,6.9224,144.47,144.44,6.9232]
[1746455273422,6.9224,144.47,144.43,26.0]
[1746455273621,6.9219,144.48,144.46,6.9226]
[1746455275014,6.9222,144.47,144.43,26.0]
[1746455275220,26.0,144.51,144.43,26.0]
[1746455275522,26.0,144.51,144.44,6.9232]
[1746455276218,6.9226,144.46,144.44,6.9232]
[1746455278231,6.9231,144.45,144.43,32.9238]
[1746455278432,26.0,144.51,144.41,4.2633]
[1746455278632,4.1685,144.5,144.42,6.9243]
[1746455279536,6.9237,144.44,144.42,6.9243]
[1746455282330,26.0,144.47,144.4,26.0]
[1746455282735,26.0,144.47,144.37,26.0]
[1746455283034,6.9252,144.41,144.39,6.9258]
[1746455283537,6.9248,144.42,144.4,6.9255]
[1746455283733,26.0,144.47,144.37,26.0]
[1746455284034,28.1033,144.5,144.37,44.72053837]
[1746455284229,28.1033,144.5,144.37,18.72053837]
[1746455284428,28.1033,144.5,144.38,26.0]
[1746455284830,6.9219,144.48,144.45,6.9228]
[1746455285329,6.9222,144.47,144.42,26.0]
[1746455285536,28.1033,144.5,144.44,6.9234]
[1746455285932,6.9224,144.47,144.44,6.9234]
[1746455286133,28.1033,144.5,144.43,6.9238]
[1746455286434,6.9229,144.46,144.43,6.9238]
[1746455287034,6.9229,144.46,144.44,6.9235]
[1746455287230,6.9223,144.47,144.42,26.0]
[1746455287430,26.0,144.5,144.46,6.9222]
[1746455287625,6.9219,144.48,144.43,4.2231]
[1746455288036,26.0,144.5,144.45,6.9228]
[1746455288229,26.0,144.5,144.43,4.2231]
[1746455288432,26.0,144.5,144.42,26.0]
[1746455288825,6.9234,144.45,144.42,26.0]
[1746455289130,6.9234,144.45,144.42,32.9242]
[1746455289535,6.9234,144.45,144.42,26.0]
[1746455289732,6.9234,144.45,144.42,32.9243]
[1746455289932,26.0,144.5,144.42,32.9243]
[1746455290437,6.9234,144.45,144.42,32.9243]
[1746455290636,26.0,144.5,144.42,32.9243]
[1746455290935,26.0,144.5,144.42,6.9243]
[1746455291940,44.72053837,144.5,144.39,25.96]
[1746455292934,6.9243,144.43,144.4,6.9253]
[1746455294836,6.9246,144.42,144.39,32.8857]
[1746455295035,25.96,144.46,144.39,32.8857]
[1746455295231,25.96,144.46,144.39,25.96]
[1746455295837,6.9243,144.43,144.4,6.9254]
[1746455296037,25.96,144.46,144.39,25.96]
[1746455296235,25.96,144.46,144.38,2.1076]
[1746455296441,25.96,144.46,144.38,6.9261]
[1746455296637,32.0686,144.46,144.36,28.081]
[1746455297037,6.9243,144.43,144.4,6.9252]
[1746455297540,27.925,144.46,144.43,6.924]
[1746455297839,25.96,144.46,144.43,6.924]
[1746455298239,32.883,144.46,144.43,6.924]
[1746455299140,6.9232,144.45,144.43,6.924]
[1746455299740,6.9236,144.44,144.42,6.9243]
[1746455300543,6.9233,144.45,144.42,6.9243]
[1746455302136,6.9233,144.45,144.43,6.924]
[1746455302441,32.8829,144.46,144.43,6.924]
[1746455302840,25.96,144.46,144.43,6.924]
[1746455303040,25.96,144.46,144.42,6.9243]
[1746455303236,25.96,144.46,144.39,1.0]
[1746455303742,6.9245,144.43,144.4,6.9253]
[1746455303944,25.96,144.46,144.39,1.0]
[1746455305342,25.96,144.46,144.39,7.9257]
[1746455305642,6.9249,144.42,144.39,1.0]
[1746455305840,25.96,144.46,144.41,6.9249]
[1746455306034,25.96,144.46,144.39,1.0]
[1746455306237,6.9234,144.45,144.39,1.0]
[1746455306539,25.96,144.46,144.43,6.9238]
[1746455306840,6.9234,144.45,144.4,2.1022]
[1746455307339,6.9234,144.45,144.42,6.9243]
[1746455307540,6.9234,144.45,144.4,2.1022]
[1746455307841,32.8829,144.46,144.4,28.0822]
[1746455308237,32.8829,144.46,144.44,6.9233]
[1746455309145,25.98,144.49,144.4,28.0822]
[1746455309639,6.9219,144.48,144.45,6.9227]
[1746455309942,25.98,144.49,144.4,46.80273837]
[1746455310347,32.9015,144.49,144.46,6.9224]
[1746455310743,6.9225,144.47,144.44,6.9233]
[1746455311946,6.9227,144.46,144.44,6.9233]
[1746455312544,6.9227,144.46,144.43,6.9239]
[1746455312742,6.9234,144.45,144.43,6.9239]
[1746455313346,6.9229,144.46,144.43,6.9239]
[1746455315147,6.9231,144.45,144.43,6.9239]
[1746455315643,6.9229,144.46,144.43,6.9239]
[1746455315843,25.98,144.49,144.44,6.9235]
[1746455316337,25.98,144.49,144.4,28.0822]
[1746455316845,44.70053837,144.49,144.39,1.0]
[1746455317046,6.2051,144.48,144.39,1.0]
[1746455317547,6.9253,144.41,144.39,1.0]
[1746455318047,6.9253,144.41,144.39,7.9257]
[1746455318348,6.9247,144.42,144.39,7.9257]
[1746455318950,6.9233,144.45,144.39,1.0]
[1746455319347,25.92,144.47,144.41,6.9246]
[1746455319548,6.924,144.44,144.41,6.9246]
[1746455319748,25.92,144.47,144.41,6.9246]
[1746455319947,25.92,144.47,144.39,1.0]
[1746455320150,6.9253,144.41,144.39,1.0]
[1746455321646,6.9255,144.4,144.39,1.0]
[1746455322151,6.9246,144.42,144.39,1.0]
[1746455322349,25.92,144.43,144.39,1.0]
[1746455322949,25.92,144.43,144.4,6.9251]
[1746455323651,32.8443,144.43,144.4,6.9251]
[1746455323947,25.92,144.43,144.4,6.9251]
[1746455324142,25.92,144.43,144.39,1.0]
[1746455324746,6.9255,144.4,144.39,1.0]
[1746455325250,44.64053837,144.43,144.35,1.0]
[1746455325447,6.1287,144.42,144.35,1.0]
[1746455325855,6.9274,144.36,144.35,1.0]
[1746455326754,6.9271,144.37,144.35,1.0]
[1746455326950,25.94,144.38,144.35,1.0]
[1746455327250,32.8667,144.38,144.35,1.0]
[1746455328054,6.927,144.37,144.35,7.9277]
[1746455328253,25.94,144.38,144.35,1.0]
[1746455328554,25.94,144.38,144.35,7.9276]
[1746455328753,32.8667,144.38,144.35,7.9276]
[1746455329658,6.9271,144.37,144.35,1.0]
[1746455330766,25.94,144.38,144.35,1.0]
[1746455331656,32.8667,144.38,144.35,7.9275]
[1746455331858,32.8667,144.38,144.35,1.0]
[1746455332156,25.94,144.38,144.35,1.0]
[1746455332348,25.94,144.41,144.35,1.0]
[1746455332852,32.8653,144.41,144.38,6.9262]
[1746455333258,25.94,144.41,144.38,6.9262]
[1746455333860,25.94,144.41,144.39,6.9259]
[1746455334055,25.94,144.41,144.35,1.0]
[1746455334360,6.9256,144.4,144.37,6.9266]
[1746455335764,6.9256,144.4,144.38,6.9263]
[1746455335958,6.9256,144.4,144.35,1.0]
[1746455336954,6.9256,144.4,144.38,6.9262]
[1746455337366,6.9248,144.42,144.35,26.94]
[1746455337661,25.94,144.44,144.35,26.94]
[1746455338059,6.9251,144.41,144.38,6.9261]
[1746455338261,25.94,144.44,144.38,6.9261]
[1746455338666,6.9253,144.41,144.38,6.9261]
[1746455339567,25.94,144.44,144.35,26.94]
[1746455340668,6.9263,144.39,144.36,6.9272]
[1746455342572,25.94,144.44,144.35,33.8678]
[1746455343164,25.94,144.44,144.35,1.0]
[1746455343460,18.72053837,144.42,144.35,1.0]
[1746455343666,6.9274,144.36,144.35,1.0]
[1746455344767,6.9272,144.37,144.35,1.0]
[1746455344968,25.94,144.38,144.35,1.0]
[1746455345669,6.9274,144.36,144.35,1.0]
[1746455348069,6.9272,144.37,144.35,1.0]
[1746455349068,6.9272,144.37,144.35,7.9277]
[1746455349372,25.94,144.38,144.35,1.0]
[1746455350361,25.9,144.42,144.35,1.0]
[1746455350568,6.9259,144.4,144.35,1.0]
[1746455350864,6.9259,144.4,144.38,6.9261]
[1746455351367,50.27927388,144.45,144.37,25.9]
[1746455351762,6.9245,144.42,144.4,6.9253]
[1746455351961,50.27927388,144.45,144.37,25.9]
[1746455352273,6.9251,144.41,144.37,25.9]
[1746455352867,6.9251,144.41,144.38,6.9264]
[1746455353069,6.9251,144.41,144.37,25.9]
[1746455353269,6.9248,144.42,144.37,25.9]
[1746455353471,25.9,144.45,144.39,6.9257]
[1746455353770,6.9263,144.39,144.37,25.9]
[1746455354975,6.9257,144.4,144.37,25.9]
[1746455355266,25.9,144.45,144.38,6.9262]
[1746455355573,6.9253,144.41,144.38,6.9262]
[1746455355970,25.9,144.45,144.38,6.9262]
[1746455356169,25.9,144.45,144.35,1.0]
[1746455356371,44.62053837,144.45,144.35,1.0]
[1746455356673,6.9254,144.41,144.38,6.9261]
[1746455356875,44.62053837,144.45,144.35,1.0]
[1746455357174,6.9263,144.39,144.35,1.0]
[1746455357476,25.9,144.41,144.35,1.0]
[1746455358277,6.9264,144.39,144.36,6.9272]
[1746455358570,25.9,144.41,144.35,1.0]
[1746455359473,6.9267,144.38,144.35,7.9277]
[1746455359868,6.9267,144.38,144.35,1.0]
[1746455360070,25.9,144.41,144.35,1.0]
[1746455360473,25.9,144.41,144.35,26.9]
[1746455360674,32.8254,144.41,144.35,26.9]
[1746455361177,32.8254,144.41,144.38,6.9261]
[1746455361779,6.9256,144.4,144.38,6.9261]
[1746455363173,32.8253,144.41,144.39,6.9259]
[1746455363375,25.9,144.41,144.35,27.9]
[1746455363585,25.9,144.44,144.36,6.2924]
[1746455363775,32.824,144.44,144.41,6.9247]
[1746455363975,25.9,144.44,144.36,6.2924]
[1746455364375,25.9,144.44,144.36,11.2014]
[1746455364576,25.9,144.44,144.36,9.0617]
[1746455364978,6.9264,144.39,144.36,9.0617]
[1746455365380,6.9264,144.39,144.37,6.9268]
[1746455365685,44.62053837,144.44,144.36,2.1346]
[1746455365978,44.62053837,144.44,144.35,27.9]
[1746455366177,6.9263,144.39,144.36,6.9272]
[1746455366783,6.9263,144.39,144.37,6.9269]
[1746455366980,6.9257,144.4,144.35,2.0]
[1746455367382,6.9257,144.4,144.37,6.9266]
[1746455368781,6.9257,144.4,144.36,6.9272]
[1746455368982,6.9261,144.39,144.36,6.9272]
[1746455369575,25.9,144.44,144.38,6.9264]
[1746455369880,25.9,144.44,144.35,2.0]
[1746455370270,6.9258,144.4,144.37,6.9265]
[1746455370471,6.9258,144.4,144.35,2.0]
[1746455370675,6.9238,144.44,144.42,6.9245]
[1746455370875,24.37927388,144.46,144.39,25.9]
[1746455371073,50.27927388,144.47,144.4,25.9]
[1746455371283,6.9228,144.46,144.43,6.9238]
[1746455371676,31.30177388,144.47,144.4,25.9]
[1746455371880,24.37927388,144.47,144.41,2.0954]
[1746455372383,24.37927388,144.47,144.46,6.9226]
[1746455373386,6.9214,144.49,144.46,6.9226]
[1746455374385,2.0477,144.51,144.45,6.9229]
[1746455374586,2.0477,144.51,144.42,4.2288]
[1746455374884,6.9217,144.48,144.45,6.9226]
[1746455375084,6.9217,144.48,144.42,4.2288]
[1746455375283,574.54,144.52,144.42,4.2288]
[1746455376594,6.9212,144.49,144.46,6.9223]
[1746455377187,6.9212,144.49,144.47,6.9221]
[1746455377492,6.9219,144.48,144.44,25.9]
[1746455377693,574.54,144.52,144.46,6.9222]
[1746455378189,574.54,144.52,144.44,25.9]
[1746455378391,574.54,144.52,144.45,6.9231]
[1746455378688,574.54,144.52,144.42,4.2288]
[1746455378887,574.54,144.52,144.43,6.9238]
[1746455379087,6.923,144.46,144.43,6.9238]
[1746455379289,25.86,144.48,144.42,2.0718]
[1746455379492,6.9239,144.44,144.41,34.9201]
[1746455379789,6.9239,144.44,144.41,32.8247]
[1746455380086,6.9229,144.46,144.41,25.9]
[1746455380287,25.86,144.48,144.41,25.9]
[1746455380688,25.86,144.48,144.41,32.8249]
[1746455381083,6.9239,144.44,144.41,32.8249]
[1746455381286,6.9239,144.44,144.41,6.9249]
[1746455381889,25.86,144.48,144.38,29.8252]
[1746455382593,6.9248,144.42,144.39,6.9257]
[1746455383396,6.9243,144.43,144.39,6.9257]
[1746455383694,2.0908,144.47,144.38,27.8422]
[1746455384089,6.9233,144.45,144.38,27.8422]
[1746455384286,6.9233,144.45,144.43,6.924]
[1746455384994,6.9233,144.45,144.42,6.9243]
[1746455385491,6.9228,144.46,144.43,6.9238]
[1746455385696,25.86,144.48,144.38,27.8422]
[1746455386198,32.7819,144.48,144.45,6.9229]
[1746455387196,32.7819,144.48,144.46,6.9226]
[1746455387695,6.9214,144.49,144.42,25.84]
[1746455388194,25.84,144.51,144.42,25.84]
[1746455388498,25.84,144.51,144.43,4.0796]
[1746455388797,32.7604,144.51,144.49,6.9211]
[1746455389200,32.7604,144.51,144.44,2.1496]
[1746455389497,32.7604,144.51,144.48,6.9213]
[1746455389698,25.84,144.51,144.44,2.1496]
[1746455389892,6.9198,144.52,144.44,2.1496]
[1746455390092,6.9198,144.52,144.5,6.9206]
[1746455390394,6.9198,144.52,144.46,25.84]
[1746455390595,6.9198,144.52,144.49,6.921]
[1746455390793,6.9198,144.52,144.46,25.84]
[1746455391901,6.9198,144.52,144.5,6.9206]
[1746455392402,6.9194,144.53,144.5,6.9206]
[1746455392704,6.9194,144.53,144.51,6.9202]
[1746455392901,25.84,144.54,144.46,25.84]
[1746455393100,32.7589,144.54,144.46,25.84]
[1746455393295,32.7589,144.54,144.51,6.9199]
[1746455393497,25.84,144.57,144.46,44.5653972]
[1746455394301,25.84,144.57,144.52,6.9197]
[1746455394801,25.84,144.57,144.5,25.84]
[1746455395109,25.84,144.57,144.52,6.9195]
[1746455395306,25.84,144.57,144.5,25.84]
[1746455395608,25.84,144.57,144.53,6.9192]
[1746455396715,6.9179,144.56,144.53,6.9192]
[1746455397116,25.84,144.57,144.53,6.9192]
[1746455397916,25.84,144.57,144.5,25.84]
[1746455398216,25.84,144.57,144.47,25.84]
[1746455398517,6.92,144.52,144.49,6.9209]
[1746455398815,6.92,144.52,144.47,25.84]
[1746455399017,25.84,144.57,144.47,25.84]
[1746455399612,6.9186,144.55,144.53,6.9192]
[1746455400112,6.9188,144.54,144.52,6.9196]
[1746455400317,25.84,144.57,144.47,25.84]
[1746455400818,6.9186,144.55,144.47,25.84]
[1746455401019,25.84,144.57,144.47,25.84]
[1746455401318,6.9185,144.55,144.47,25.84]
[1746455401518,27.9593,144.6,144.48,18.7253972]
[1746455401717,27.9593,144.6,144.49,4.1068]
[1746455402017,6.9174,144.57,144.49,4.1068]
[1746455402207,6.9174,144.57,144.5,2.0262]
[1746455402410,6.9179,144.56,144.54,6.9185]
[1746455402812,27.9593,144.6,144.51,25.84]
[1746455403019,18.7253972,144.59,144.47,25.84]
[1746455403212,39.7253972,144.59,144.47,25.84]
[1746455403518,6.9205,144.51,144.47,25.84]
[1746455403713,25.84,144.55,144.47,25.84]
[1746455404018,6.92,144.52,144.49,6.9208]
[1746455404219,25.84,144.55,144.47,25.84]
[1746455404623,6.9192,144.54,144.47,25.84]
[1746455404919,25.84,144.55,144.47,25.84]
[1746455405108,25.84,144.55,144.47,6.9219]
[1746455405315,25.84,144.55,144.44,32.0689]
[1746455406321,6.92,144.52,144.49,6.9209]
[1746455406919,18.7253972,144.53,144.47,6.9221]
[1746455407320,6.92,144.52,144.49,6.921]
[1746455408136,27.8185,144.58,144.48,25.84]
[1746455408333,27.8185,144.58,144.49,25.84]
[1746455408531,46.5438972,144.58,144.49,25.84]
[1746455409129,6.9195,144.53,144.5,6.9206]
[1746455410133,6.9199,144.52,144.49,32.7609]